lending/lending_fUSD_20241228
["ID","MTS","AMOUNT","RATE_DAILY","PERIOD"]
[346935806,1735398641632,500.0,0.00022999,120]
[346935812,1735398642703,500.0,0.00022999,120]
[346935813,1735398642778,-1594.61578653,0.0001289,2]
[346935814,1735398642816,-905.38421347,0.0001289,2]
[346935815,1735398642826,-94791.66652422,0.00013,2]
[346935816,1735398642839,-683.665,0.00013,2]
[346935817,1735398642951,-432.0,0.00013,2]
[346935818,1735398642962,-11334.54389629,0.00013,2]
[346935819,1735398642995,-79429.42782047,0.00013,2]
[346935820,1735398643040,-18017.202,0.00013,2]
[346935827,1735398643418,500.0,0.00022999,120]
[346935828,1735398644068,253.25,0.00022999,120]
[346935829,1735398644307,500.0,0.00022999,120]
[346935830,1735398644847,567.69,0.00022999,120]
[346935833,1735398645809,-668.0,0.00013,2]
[346935834,1735398645819,-430.0,0.00013,2]
[346935835,1735398645831,-266.34815154,0.00013,2]
[346935836,1735398645867,-2465.23679469,0.00013,2]
[346935837,1735398645878,-256.00451223,0.00013,2]
[346935838,1735398645925,-57079.56259347,0.00013,2]
[346935839,1735398645936,-640.70000016,0.00013,2]
[346935840,1735398645987,-531.41457158,0.00013,2]
[346935841,1735398646141,-3099.40187242,0.00013,2]
[346935842,1735398646153,-8297.81488646,0.00013,2]
[346935845,1735398647088,500.0,0.00022999,120]
[346935846,1735398647342,262.27,0.00022999,120]
[346935847,1735398648305,500.0,0.00022999,120]
[346935848,1735398649452,204.15414417,0.00022999,120]
[346935849,1735398650241,500.0,0.00022999,120]
[346935850,1735398651077,500.0,0.00022999,120]
[346935851,1735398652115,501.44619143,0.00022999,120]
[346935852,1735398655534,344.83732584,0.00022999,120]
[346935853,1735398655811,608.8,0.00022999,120]
[346935854,1735398656327,500.0,0.00022999,120]
[346935855,1735398656567,1285.31,0.00022999,120]
[346935856,1735398656619,500.0,0.00022999,120]
[346935857,1735398657781,1285.31,0.00022999,120]
[346935858,1735398657823,500.0,0.00022999,120]
[346935859,1735398658237,615.03,0.00022999,120]
[346935860,1735398659065,1285.31,0.00022999,120]
[346935861,1735398659116,500.0,0.00022999,120]
[346935862,1735398660705,1285.31,0.00022999,120]
[346935863,1735398660869,500.0,0.00022999,120]
[346935864,1735398661278,1285.31,0.00022999,120]
[346935865,1735398661574,432.69788905,0.00022999,120]
[346935866,1735398661990,1285.31,0.00022999,120]
[346935867,1735398663297,1285.31,0.00022999,120]
[346935868,1735398664079,1285.31,0.00022999,120]
[346935869,1735398664178,500.0,0.00022999,120]
[346935870,1735398665596,1285.31,0.00022999,120]
[346935871,1735398666164,1285.31,0.00022999,120]
[346935872,1735398667150,1285.31,0.00022999,120]
[346935873,1735398669003,1285.31,0.00022999,120]
[346935874,1735398669344,500.0,0.00022999,120]
[346935875,1735398669398,500.0,0.00022999,120]
[346935876,1735398669674,1285.31,0.00022999,120]
[346935877,1735398671142,1285.31,0.00022999,120]
[346935878,1735398672552,1285.31,0.00022999,120]
[346935879,1735398673491,1285.31,0.00022999,120]
[346935880,1735398674432,1285.31,0.00022999,120]
[346935881,1735398674539,500.0,0.00022999,120]
[346935882,1735398675043,1285.31,0.00022999,120]
[346935883,1735398675442,500.0,0.00022999,120]
[346935884,1735398676694,1285.31,0.00022999,120]
[346935885,1735398676855,500.0,0.00022999,120]
[346935886,1735398677278,510.91,0.00022999,120]
[346935887,1735398677681,1285.31,0.00022999,120]
[346935888,1735398677747,504.33,0.00022999,120]
[346935889,1735398677927,286.6195871,0.00022999,120]
[346935890,1735398678471,1285.31,0.00022999,120]
[346935891,1735398679565,1285.31,0.00022999,120]
[346935892,1735398680091,1285.31,0.00022999,120]
[346935893,1735398681219,1285.34779854,0.00022999,120]
[346935894,1735398692684,10000.0,0.00023,120]
[346935895,1735398693452,500.0,0.00022999,120]
[346935896,1735398693721,500.0,0.00022999,120]
[346935897,1735398694128,252.21,0.00022999,120]
[346935898,1735398699059,500.0,0.00022999,120]
[346935899,1735398702500,500.0,0.00022999,120]
[346935900,1735398702550,10000.0,0.00023,120]
[346935901,1735398704347,500.0,0.00022999,120]
[346935902,1735398704518,500.0,0.00022999,120]
[346935903,1735398705018,173.28,0.00022999,120]
[346935904,1735398705410,500.0,0.00022999,120]
[346935905,1735398706732,500.0,0.00022999,120]
[346935906,1735398707338,500.0,0.00022999,120]
[346935907,1735398708719,500.0,0.00022999,120]
[346935908,1735398709746,559.9,0.00022999,120]
[346935909,1735398711357,334.22473429,0.00022999,120]
[346935910,1735398715855,500.0,0.00022999,120]
[346935911,1735398716727,500.0,0.00022999,120]
[346935912,1735398717080,500.0,0.00022999,120]
[346935913,1735398717234,500.0,0.00022999,120]
[346935914,1735398718169,500.0,0.00022999,120]
[346935915,1735398718455,269.3,0.00022999,120]
[346935916,1735398718759,322.39,0.00022999,120]
[346935917,1735398721130,422.88237727,0.00022999,120]
[346935918,1735398722204,619.73,0.00022999,120]
[346935919,1735398723101,619.73,0.00022999,120]
[346935920,1735398723157,6158.0,0.00023,120]
[346935921,1735398723495,619.73,0.00022999,120]
[346935922,1735398725865,619.73,0.00022999,120]
[346935923,1735398726737,619.73,0.00022999,120]
[346935924,1735398727573,619.73,0.00022999,120]
[346935925,1735398728597,619.73,0.00022999,120]
[346935926,1735398729211,619.73,0.00022999,120]
[346935927,1735398729970,619.73,0.00022999,120]
[346935928,1735398730061,500.0,0.00022999,120]
[346935929,1735398730291,500.0,0.00022999,120]
[346935930,1735398730982,619.73,0.00022999,120]
[346935931,1735398731058,500.0,0.00022999,120]
[346935932,1735398731331,500.0,0.00022999,120]
[346935933,1735398731636,619.73,0.00022999,120]
[346935934,1735398731682,500.0,0.00022999,120]
[346935935,1735398731884,577.23,0.00022999,120]
[346935936,1735398732298,500.0,0.00022999,120]
[346935937,1735398732541,619.73,0.00022999,120]
[346935938,1735398733438,510.38104006,0.00022999,120]
[346935939,1735398733731,619.73,0.00022999,120]
[346935940,1735398734121,1000.0,0.00012,12]
[346935941,1735398735009,619.73,0.00022999,120]
[346935942,1735398736129,619.73,0.00022999,120]
[346935943,1735398738162,485.7590368,0.00022999,120]
[346935944,1735398738576,619.73,0.00022999,120]
[346935945,1735398739049,619.73,0.00022999,120]
[346935946,1735398739784,619.73,0.00022999,120]
[346935947,1735398741237,619.73,0.00022999,120]
[346935948,1735398742561,619.73,0.00022999,120]
[346935949,1735398743084,619.73,0.00022999,120]
[346935950,1735398743659,619.73,0.00022999,120]
[346935951,1735398744531,619.73,0.00022999,120]
[346935952,1735398745571,619.87550731,0.00022999,120]
[346935954,1735398755549,500.0,0.00022999,120]
[346935955,1735398756523,500.0,0.00022999,120]
[346935956,1735398757191,500.0,0.00022999,120]
[346935957,1735398757242,500.0,0.00022999,120]
[346935958,1735398757546,2581.96,0.00022999,120]
[346935959,1735398757786,2581.96,0.00022999,120]
[346935960,1735398757971,240.89,0.00022999,120]
[346935961,1735398758020,500.0,0.00022999,120]
[346935962,1735398758068,2581.96,0.00022999,120]
[346935963,1735398758283,2581.96,0.00022999,120]
[346935964,1735398758909,2581.96,0.00022999,120]
[346935965,1735398759169,2581.96,0.00022999,120]
[346935966,1735398759443,2581.96,0.00022999,120]
[346935967,1735398759648,500.0,0.00022999,120]
[346935968,1735398759703,2581.96,0.00022999,120]
[346935969,1735398759942,2581.96,0.00022999,120]
[346935970,1735398760192,2581.96,0.00022999,120]
[346935971,1735398760437,2581.96,0.00022999,120]
[346935972,1735398760528,500.0,0.00022999,120]
[346935973,1735398760737,2581.96,0.00022999,120]
[346935974,1735398760986,2581.96,0.00022999,120]
[346935975,1735398761258,2581.96,0.00022999,120]
[346935976,1735398761534,2581.96,0.00022999,120]
[346935977,1735398761772,500.0,0.00022999,120]
[346935978,1735398761817,2581.96,0.00022999,120]
[346935979,1735398762030,2581.96,0.00022999,120]
[346935980,1735398762296,2581.96,0.00022999,120]
[346935981,1735398762539,2581.96,0.00022999,120]
[346935982,1735398762785,2581.96,0.00022999,120]
[346935983,1735398762969,500.25,0.00022999,120]
[346935984,1735398763076,2581.96,0.00022999,120]
[346935985,1735398763328,2581.96,0.00022999,120]
[346935986,1735398763698,2581.96,0.00022999,120]
[346935987,1735398764152,2582.02961865,0.00022999,120]
[346935988,1735398766487,500.0,0.00022999,120]
[346935989,1735398767545,588.45,0.00022999,120]
[346935990,1735398770675,500.0,0.00022999,120]
[346935991,1735398771314,500.0,0.00022999,120]
[346935992,1735398772357,500.0,0.00022999,120]
[346935993,1735398773356,500.0,0.00022999,120]
[346935994,1735398774753,500.0,0.00022999,120]
[346935995,1735398774801,190.82,0.00022999,120]
[346935996,1735398774973,500.0,0.00022999,120]
[346935997,1735398775597,500.0,0.00022999,120]
[346935998,1735398776217,345.86717396,0.00022999,120]
[346935999,1735398777439,337.18049649,0.00022999,120]
[346936000,1735398808963,500.0,0.00022999,120]
[346936001,1735398815982,500.0,0.00022999,120]
[346936002,1735398826821,239.040004,0.00022999,120]
[346936003,1735398831077,500.0,0.00022999,120]
[346936004,1735398831475,500.0,0.00022999,120]
[346936005,1735398831723,228.45,0.00022999,120]
[346936006,1735398859626,635.74,0.00022999,120]
[346936007,1735398865122,299.31795532,0.00022999,120]
[346936008,1735398898241,576.73008626,0.00022999,120]
[346936009,1735398901958,500.0,0.00022999,120]
[346936010,1735398902192,179.68,0.00022999,120]
[346936011,1735398921906,500.0,0.00022999,120]
[346936012,1735398933454,500.0,0.00022999,120]
[346936013,1735398936187,306.72650191,0.00022999,120]
[346936014,1735398937067,500.0,0.00022999,120]
[346936015,1735398980474,501.83280241,0.00022999,120]
[346936016,1735398982681,502.11518266,0.00022999,120]
[346936017,1735398984683,501.47321695,0.00022999,120]
[346936018,1735398987030,500.0,0.00022999,120]
[346936019,1735399000036,500.0,0.00022999,120]
[346936020,1735399002101,500.0,0.00022999,120]
[346936021,1735399008339,500.0,0.00022999,120]
[346936022,1735399008601,334.26,0.00022999,120]
[346936023,1735399010901,500.0,0.00022999,120]
[346936024,1735399014608,500.0,0.00022999,120]
[346936025,1735399014859,459.37490482,0.00022999,120]
[346936026,1735399015277,156.15053229,0.00022999,120]
[346936027,1735399016742,500.0,0.00022999,120]
[346936028,1735399017000,500.0,0.00022999,120]
[346936030,1735399024858,500.0,0.00022999,120]
[346936031,1735399025113,500.0,0.00022999,120]
[346936032,1735399025399,178.4,0.00022999,120]
[346936033,1735399028340,743.54,9.943e-05,2]
[346936034,1735399044343,430.56747587,0.00022999,120]
[346936035,1735399047888,500.0,0.00022999,120]
[346936036,1735399048154,500.0,0.00022999,120]
[346936037,1735399048473,500.0,0.00022999,120]
[346936038,1735399052074,501.2766175,0.00022999,120]
[346936039,1735399062353,500.0,0.00022999,120]
[346936040,1735399066334,500.0,0.00022999,120]
[346936041,1735399067119,500.0,0.00022999,120]
[346936042,1735399068445,500.0,0.00022999,120]
[346936043,1735399069279,500.0,0.00022999,120]
[346936044,1735399070292,500.0,0.00022999,120]
[346936045,1735399070958,191.70654678,0.00022999,120]
[346936046,1735399075158,500.0,0.00022999,120]
[346936047,1735399075416,191.41,0.00022999,120]
[346936048,1735399085663,500.0,0.00022999,120]
[346936050,1735399102243,500.0,0.00022999,120]
[346936051,1735399102878,242.23,0.00022999,120]
[346936052,1735399116392,500.0,0.00022999,120]
[346936053,1735399195928,500.0,0.00022999,120]
[346936054,1735399196171,500.0,0.00022999,120]
[346936055,1735399197080,323.24,0.00022999,120]
[346936056,1735399476151,500.0,0.0001,2]
[346936070,1735399714060,150.0,0.00023,120]
[346936071,1735399714327,150.0,0.00023,120]
[346936072,1735399714628,150.0,0.00023,120]
[346936073,1735399714894,150.0,0.00023,120]
[346936074,1735399715549,200.0,0.00023,120]
[346936075,1735399715635,202.24316449,0.00023,120]
[346936082,1735399831871,-195.89,0.00010137,2]
[346936083,1735399831881,-1720.547789,0.00011076,2]
[346936085,1735399831907,-1100.53639124,0.00011076,2]
[346936087,1735399831917,-2821.08418024,0.00011106,2]
[346936089,1735399831928,-2821.08418024,0.00011136,2]
[346936090,1735399831937,-743.87515383,0.00011176,2]
[346936091,1735399831948,-344.35,0.00011177,2]
[346936092,1735399831958,-300.0,0.00011235,2]
[346936093,1735399831967,-3557.49,0.00011236,2]
[346936094,1735399831977,-1000.0,0.00011276,2]
[346936095,1735399831987,-151.33,0.00011313,2]
[346936096,1735399831996,-250.0,0.0001143,2]
[346936097,1735399832006,-23900.0,0.00011469,2]
[346936098,1735399832015,-250.0,0.0001148,2]
[346936099,1735399832026,-4534.25091786,0.00011536,2]
[346936100,1735399832036,-558.68,0.00011558,2]
[346936101,1735399832047,-1000.0,0.00011674,2]
[346936102,1735399832056,-979.13,0.00011675,2]
[346936103,1735399832066,-150.0,0.00011688,2]
[346936104,1735399832075,-150.0,0.00011688,2]
[346936105,1735399832085,-150.0,0.00011688,2]
[346936106,1735399832095,-165.92,0.00011831,2]
[346936107,1735399832105,-165.92,0.00011846,2]
[346936108,1735399832115,-200.0,0.00011861,2]
[346936109,1735399832124,-165.92,0.00011861,2]
[346936110,1735399832133,-165.92,0.00011876,2]
[346936111,1735399832143,-1500.0,0.0001189,2]
[346936112,1735399832153,-165.92,0.00011891,2]
[346936113,1735399832162,-423.89,0.00011904,2]
[346936114,1735399832172,-179.03,0.0001193,2]
[346936115,1735399832183,-500.0,0.00011972,2]
[346936116,1735399832192,-1100.0,0.00011972,2]
[346936117,1735399832202,-4328.92966013,0.0001198,2]
[346936118,1735399832211,-9000.0,0.00012,2]
[346936119,1735399832221,-9576.84791416,0.00012,3]
[346936120,1735399832230,-450.0,0.00012,2]
[346936121,1735399832240,-150.0,0.00012012,2]
[346936123,1735399832249,-150.0,0.00012121,2]
[346936125,1735399832259,-743.54,0.00012207,2]
[346936127,1735399832268,-166.86,0.00012299,2]
[346936128,1735399832278,-150.0,0.00012337,2]
[346936129,1735399832287,-150.0,0.00012337,2]
[346936130,1735399832299,-420.0,0.00012343,2]
[346936131,1735399832309,-370.097,0.0001235,2]
[346936132,1735399832319,-16429.06454065,0.00012434,2]
[346936133,1735399832331,-327.41088722,0.00012434,2]
[346936134,1735399832342,-571.2076922,0.00012434,2]
[346936135,1735399832354,-587.01888947,0.00012434,2]
[346936136,1735399832364,-245.69591744,0.00012439,2]
[346936137,1735399832374,-245.69591744,0.0001244,2]
[346936139,1735399832383,-12.10991902,0.00012443,2]
[346936140,1735399832395,-5151.65395481,0.00012443,2]
[346936141,1735399832410,-1985.26995049,0.00012443,2]
[346936142,1735399832424,-4307.4185581,0.00012443,2]
[346936143,1735399832596,-961.67907138,0.00012443,2]
[346936144,1735399832624,-1987.100005,0.00012443,2]
[346936145,1735399832637,-3509.47055074,0.00012443,2]
[346936146,1735399832646,-23193.02944927,0.00012445,2]
[346936147,1735399832658,-479.3635473,0.00012445,2]
[346936148,1735399832669,-1239.35,0.00012445,2]
[346936149,1735399832684,-1864.15132103,0.00012445,2]
[346936150,1735399832694,-41.76952456,0.00012447,2]
[346936151,1735399832705,-7461.91580602,0.00012447,2]
[346936152,1735399832725,-19272.20898702,0.00012447,2]
[346936153,1735399832735,-391.66666666,0.00012447,2]
[346936154,1735399832744,-391.66666666,0.00012447,2]
[346936155,1735399832754,-5669.5134845,0.00012448,2]
[346936156,1735399832766,-2308.34147264,0.00012448,2]
[346936157,1735399832777,-1170.05,0.00012448,2]
[346936161,1735399837789,-828.4474314,0.00012448,2]
[346936163,1735399837816,-3163.74223281,0.00012448,2]
[346936164,1735399837828,-4774.60738819,0.00012448,2]
[346936165,1735399837837,-26775.8943176,0.00012449,2]
[346936166,1735399837848,-391.66666666,0.00012451,2]
[346936167,1735399837857,-711.92585472,0.00012452,2]
[346936168,1735399837867,-711.92585472,0.00012453,2]
[346936169,1735399837877,-711.92585472,0.00012453,2]
[346936170,1735399837886,-26775.8943176,0.00012454,2]
[346936171,1735399837896,-245.69591744,0.00012454,2]
[346936172,1735399837906,-245.69591744,0.00012456,2]
[346936173,1735399837915,-13904.4344043,0.00012457,2]
[346936174,1735399837928,-1269.99759,0.00012457,2]
[346936175,1735399837939,-2388.6000052,0.00012457,2]
[346936176,1735399837950,-351.67001004,0.00012457,2]
[346936177,1735399837960,-2675.93955874,0.0001246,2]
[346936178,1735399837971,-288.9699825,0.0001246,2]
[346936179,1735399837983,-3438.32803194,0.0001246,2]
[346936180,1735399837994,-9266.66307812,0.0001246,2]
[346936181,1735399838005,-2244.80135824,0.0001246,2]
[346936182,1735399838015,-711.92585472,0.00012461,2]
[346936183,1735399838025,-391.66666666,0.00012462,2]
[346936184,1735399838036,-391.66666666,0.00012462,2]
[346936185,1735399838045,-245.69591744,0.00012464,2]
[346936186,1735399838054,-871.27394305,0.00012465,2]
[346936187,1735399838067,-1533.348258,0.00012465,2]
[346936188,1735399838078,-381.29752691,0.00012465,2]
[346936189,1735399838089,-480.58,0.00012465,2]
[346936190,1735399838108,-14648.20228158,0.00012465,2]
[346936191,1735399838117,-245.69591744,0.00012465,2]
[346936192,1735399838127,-711.92585472,0.00012468,2]
[346936193,1735399838136,-391.66666666,0.00012468,2]
[346936194,1735399838146,-26775.8943176,0.00012468,2]
[346936196,1735399838155,-711.92585472,0.00012468,2]
[346936197,1735399838165,-26775.8943176,0.00012469,2]
[346936198,1735399838175,-150.0,0.00012553,2]
[346936200,1735399838185,-150.0,0.00012662,2]
[346936202,1735399838195,-1000.0,0.00012686,2]
[346936204,1735399838204,-164.06407703,0.00012705,2]
[346936206,1735399838214,-3133.99279315,0.00012711,2]
[346936208,1735399838225,-722.70020685,0.00012711,2]
[346936210,1735399838235,-150.0,0.00012711,2]
[346936212,1735399838244,-52.9015974,0.00012711,2]
[346936214,1735399838255,-98.0984026,0.00012711,2]
[346936216,1735399838265,-164.06407696,0.00012733,2]
[346936218,1735399838274,-461.83755544,0.00012741,2]
[346936221,1735399838287,-480.67244456,0.00012741,2]
[346936223,1735399838298,-702.82755144,0.00012741,2]
[346936225,1735399838310,-1947.44,0.00012741,2]
[346936227,1735399838321,-10078.50070166,0.00012741,2]
[346936229,1735399838331,-285.214,0.00012741,2]
[346936231,1735399838343,-34840.691785,0.00012741,2]
[346936384,1735399839880,-281.48008961,0.00012741,2]
[346936386,1735399839892,-992.79,0.00012741,2]
[346936388,1735399839903,-937.5,0.00012741,2]
[346936390,1735399839914,-4848.9,0.00012741,2]
[346936393,1735399839926,-5019.68047745,0.00012741,2]
[346936395,1735399839937,-9381.119514,0.00012741,2]
[346936397,1735399839948,-5471.8373109,0.00012741,2]
[346936405,1735399840015,-12985.84610772,0.00012741,2]
[346936407,1735399840027,-8102.17246222,0.00012741,2]
[346936409,1735399840036,-164.06407696,0.00012761,2]
[346936411,1735399840046,-164.06407696,0.00012789,2]
[346936413,1735399840055,-894.70761844,0.00012805,2]
[346936415,1735399840065,-164.06407696,0.00012816,2]
[346936418,1735399840074,-45520.8351,0.00012859,2]
[346936420,1735399840084,-2521.3158,0.0001289,2]
[346936422,1735399840093,-6548.7913,0.0001289,2]
[346936424,1735399840102,-2228.8098,0.000129,2]
[346936426,1735399840112,-1000.0,0.000129,2]
[346936428,1735399840121,-221990.91597129,0.000129,2]
[346936430,1735399840132,-150.03666278,0.000129,2]
[346936432,1735399840141,-3000.0,0.000129,2]
[346936434,1735399840151,-1498.118439,0.000129,2]
[346936436,1735399840161,-29661.21537628,0.00012959,2]
[346936438,1735399840172,-800.89909356,0.00012959,2]
[346936440,1735399840186,-56176.88553016,0.00012959,2]
[346936442,1735399840196,-4402.0,0.00012959,2]
[346936444,1735399840205,-2210.0,0.00012959,2]
[346936446,1735399840215,-3877.0,0.00012959,2]
[346936448,1735399840225,-400.0,0.0001297,2]
[346936450,1735399840235,-400.0,0.0001297,2]
[346936452,1735399840245,-3000.0,0.0001297,2]
[346936454,1735399840254,-618.08275449,0.00012973,2]
[346936456,1735399840263,-600.21498015,0.00012973,2]
[346936458,1735399840272,-511.13889382,0.00012973,2]
[346936460,1735399840282,-505.83885586,0.00012973,2]
[346936462,1735399840291,-500.0,0.00012973,2]
[346936464,1735399840304,-282.72247137,0.00012986,2]
[346936466,1735399840313,-182.82207421,0.00012986,2]
[346936468,1735399840322,-175.31030912,0.00012986,2]
[346936470,1735399840331,-500.0,0.00012999,2]
[346936472,1735399840342,-376.7622718,0.00012999,2]
[346936475,1735399840352,-500.0,0.00012999,2]
[346936477,1735399840361,-500.0,0.00012999,2]
[346936478,1735399840372,-500.0,0.00012999,2]
[346936480,1735399840381,-500.0,0.00012999,2]
[346936482,1735399840390,-500.0,0.00012999,2]
[346936484,1735399840399,-562.71326177,0.00012999,2]
[346936486,1735399840409,-2000.0,0.00012999,2]
[346936489,1735399840419,-2000.0,0.00012999,2]
[346936491,1735399840428,-2000.0,0.00012999,2]
[346936493,1735399840438,-2000.0,0.00012999,2]
[346936495,1735399840449,-2000.0,0.00012999,2]
[346936497,1735399840458,-500.0,0.00012999,2]
[346936499,1735399840467,-39177.43594215,0.00012999,2]
[346936501,1735399840476,-594.0,0.00012999,2]
[346936503,1735399840486,-4269.53230339,0.00013,2]
[346936505,1735399840495,-69775.44699925,0.00013,2]
[346936526,1735399840682,-3622.39033404,0.00013,2]
[346936528,1735399840693,-3907.79298001,0.00013,2]
[346936530,1735399840704,-1512.7,0.00013,2]
[346936532,1735399840715,-808.52068776,0.00013,2]
[346936535,1735399840732,-24449.684382,0.00013,2]
[346936538,1735399840747,-5663.00549854,0.00013,2]
[346936540,1735399840757,-6014.6,0.00013,2]
[346936544,1735399840780,-13201.90983459,0.00013,2]
[346936585,1735399842973,-189.87064025,0.000128,2]
[346936586,1735399842984,-164.06407696,0.00012844,2]
[346936587,1735399842994,-189796.70749146,0.00013,2]
[346936588,1735399843006,-546.073235,0.00013,2]
[346936589,1735399843018,-10105.0,0.00013,2]
[346936590,1735399843030,-449.89721201,0.00013,2]
[346936591,1735399843041,-707.3898016,0.00013,2]
[346936592,1735399843127,-1648.35,0.00013,2]
[346936593,1735399843138,-4413.25153393,0.00013,2]
[346936594,1735399843162,-11585.49986,0.00013,2]
[346936632,1735399845968,-381.53,0.00012741,2]
[346936633,1735399845978,-18.25581851,0.00013,2]
[346936634,1735399846176,-6769.25669112,0.00013,2]
[346936635,1735399846189,-772.09808,0.00013,2]
[346936636,1735399846200,-752014.92630461,0.00013,2]
[346936637,1735399846211,-536.0,0.00013,2]
[346936638,1735399846220,-285750.90849339,0.00013,2]
[346936639,1735399846232,-3805.83049162,0.00013,2]
[346936640,1735399846243,-5787.35628123,0.00013,2]
[346936641,1735399846322,-3239.0133994,0.00013,2]
[346936643,1735399996291,572.240747,0.00022999,120]
[346936645,1735400396611,506.95864076,0.00022999,120]
[346936646,1735400589478,500.0,0.00022999,120]
[346936674,1735401032193,-669.18,0.00010128,2]
[346936675,1735401032204,-289.01,0.00010137,2]
[346936676,1735401032214,-334.3914419,0.00011751,2]
[346936677,1735401032226,-4.7185581,0.00011751,2]
[346936678,1735401032235,-1000.0,0.00011916,2]
[346936679,1735401032244,-250.0,0.00011933,2]
[346936680,1735401032254,-1245.41,0.00011985,2]
[346936681,1735401032263,-500.0,0.00012,2]
[346936682,1735401032273,-500.0,0.00012,2]
[346936683,1735401032283,-500.0,0.00012,2]
[346936684,1735401032292,-502.42018547,0.00012,2]
[346936685,1735401032302,-279.34,0.00012004,2]
[346936686,1735401032311,-268.76,0.00012192,2]
[346936687,1735401032321,-150.0,0.00012219,2]
[346936688,1735401032331,-370.45,0.00012248,2]
[346936689,1735401032340,-380.52,0.00012286,2]
[346936690,1735401032351,-200.43217651,0.0001235,2]
[346936691,1735401032374,-154.26182349,0.0001235,2]
[346936692,1735401032384,-376.19,0.00012354,2]
[346936693,1735401032393,-428.73043599,0.00012391,2]
[346936694,1735401032405,-240.44956401,0.00012391,2]
[346936695,1735401032415,-377.16,0.00012469,2]
[346936696,1735401032424,-500.0,0.0001263,2]
[346936697,1735401032434,-381.05,0.00012664,2]
[346936698,1735401032443,-453.43256519,0.00012711,2]
[346936699,1735401032454,-347.37443481,0.00012711,2]
[346936700,1735401032464,-102.62556519,0.000128,2]
[346936701,1735401032480,-591.14253211,0.000128,2]
[346936702,1735401032491,-437.7779378,0.000128,2]
[346936703,1735401032507,-1635.20433221,0.000128,2]
[346936706,1735401032518,-348.89010204,0.000128,2]
[346936709,1735401032538,-1204.56856532,0.000128,2]
[346936711,1735401032550,-604.32310367,0.000128,2]
[346936713,1735401032561,-692.77500015,0.000128,2]
[346936730,1735401038015,-212.651,0.00012711,2]
[346936731,1735401038024,-60.37806358,0.000128,2]
[346936732,1735401038058,-393.31479793,0.000128,2]
[346936733,1735401038067,-2987.91498324,0.000128,2]
[346936734,1735401038099,-28470.9,0.000128,2]
[346936735,1735401038111,-465.63749736,0.000128,2]
[346936736,1735401038141,-33450.0000001,0.000128,2]
[346936763,1735401040137,-838.68893181,0.000128,2]
[346936764,1735401040150,-37884.35978015,0.000128,2]
[346936765,1735401040204,-7204.59203402,0.000128,2]
[346936766,1735401040215,-2376.20316118,0.000128,2]
[346936767,1735401040227,-2809.70361214,0.000128,2]
[346936768,1735401040237,-172.24168927,0.00012873,2]
[346936769,1735401040248,-205.19831073,0.00012873,2]
[346936770,1735401040257,-372.06,0.00012874,2]
[346936771,1735401040267,-378.32,0.00012874,2]
[346936772,1735401040276,-379.71,0.00012875,2]
[346936773,1735401040286,-372.95,0.00012877,2]